fUST/lending_fUST_20250311
["ID","MTS","AMOUNT","RATE_DAILY","PERIOD"]
[355844377,1741634693007,-500.0,0.00051232,120]
[355844378,1741634693037,-1852.39,0.00051232,120]
[355844380,1741634693068,-500.0,0.00051232,120]
[355844381,1741634693098,-572.5935345,0.00051232,120]
[355844383,1741634693127,-169.86942194,0.00051232,120]
[355844384,1741634693156,-536.38,0.00051232,120]
[355844386,1741634693188,-500.0,0.00051232,120]
[355844388,1741634693218,-500.0,0.00051232,120]
[355844389,1741634693248,-500.0,0.00051232,120]
[355844391,1741634693277,-500.0,0.00051232,120]
[355844392,1741634693307,-2167.04,0.00051232,120]
[355844394,1741634693337,-500.0,0.00051232,120]
[355844395,1741634693367,-500.0,0.00051232,120]
[355844397,1741634693396,-500.0,0.00051232,120]
[355844399,1741634693424,-500.0,0.00051232,120]
[355844400,1741634693451,-1453.83,0.00051232,120]
[355844402,1741634693479,-691.64170677,0.00051232,120]
[355844403,1741634693507,-500.0,0.00051232,120]
[355844405,1741634693535,-500.0,0.00051232,120]
[355844406,1741634693563,-500.0,0.00051232,120]
[355844408,1741634693592,-500.0,0.00051232,120]
[355844410,1741634693619,-500.0,0.00051232,120]
[355844411,1741634693648,-510.89193623,0.00051232,120]
[355844413,1741634693678,-500.0,0.00051232,120]
[355844414,1741634693706,-500.0,0.00051232,120]
[355844416,1741634693735,-323.68396622,0.00051232,120]
[355844417,1741634693763,-825.46,0.00051232,120]
[355844418,1741634693789,-500.0,0.00051232,120]
[355844419,1741634693816,-500.0,0.00051232,120]
[355844420,1741634693843,-500.0,0.00051232,120]
[355844421,1741634693870,-500.0,0.00051232,120]
[355844422,1741634693897,-1427.28,0.00051232,120]
[355844423,1741634693927,-500.0,0.00051232,120]
[355844424,1741634693954,-321.404413,0.00051232,120]
[355844425,1741634693981,-500.0,0.00051232,120]
[355844426,1741634694013,-321.404413,0.00051232,120]
[355844427,1741634694042,-526.85925009,0.00051232,120]
[355844432,1741634694338,-500.0,0.00051232,120]
[355844433,1741634694367,-1000.0,0.00051232,120]
[355844435,1741634694395,-500.0,0.00051232,120]
[355844437,1741634694423,-609.74788287,0.00051232,120]
[355844438,1741634694451,-500.0,0.00051232,120]
[355844440,1741634694479,-500.0,0.00051232,120]
[355844441,1741634694507,-500.0,0.00051232,120]
[355844443,1741634694534,-500.0,0.00051232,120]
[355844445,1741634694562,-500.0,0.00051232,120]
[355844446,1741634694590,-500.0,0.00051232,120]
[355844448,1741634694622,-513.40501855,0.00051232,120]
[355844449,1741634694649,-593.95,0.00051232,120]
[355844451,1741634694678,-500.0,0.00051232,120]
[355844453,1741634694705,-500.0,0.00051232,120]
[355844454,1741634694733,-1223.04,0.00051232,120]
[355844456,1741634694761,-500.0,0.00051232,120]
[355844457,1741634694789,-500.0,0.00051232,120]
[355844459,1741634694816,-500.0,0.00051232,120]
[355844461,1741634694844,-500.0,0.00051232,120]
[355844462,1741634694871,-489.51518406,0.00051232,120]
[355844464,1741634694898,-500.0,0.00051232,120]
[355844465,1741634694925,-500.0,0.00051232,120]
[355844467,1741634694952,-500.0,0.00051232,120]
[355844469,1741634694978,-1977.19,0.00051232,120]
[355844470,1741634695006,-1508.22,0.00051232,120]
[355844472,1741634695032,-500.0,0.00051232,120]
[355844473,1741634695060,-500.0,0.00051232,120]
[355844475,1741634695088,-500.0,0.00051232,120]
[355844477,1741634695115,-1095.78,0.00051232,120]
[355844478,1741634695141,-500.0,0.00051232,120]
[355844480,1741634695172,-1280.77,0.00051232,120]
[355844481,1741634695200,-548.37802293,0.00051232,120]
[355844483,1741634695228,-500.0,0.00051232,120]
[355844485,1741634695255,-561.42388401,0.00051232,120]
[355844486,1741634695284,-500.0,0.00051232,120]
[355844488,1741634695317,-519.17496814,0.00051232,120]
[355844489,1741634695345,-500.0,0.00051232,120]
[355844491,1741634695372,-648.8,0.00051232,120]
[355844492,1741634695400,-500.0,0.00051232,120]
[355844494,1741634695430,-500.0,0.00051232,120]
[355844496,1741634695457,-500.0,0.00051232,120]
[355844497,1741634695487,-500.0,0.00051232,120]
[355844499,1741634695516,-552.36966489,0.00051232,120]
[355844500,1741634695547,-493.82881634,0.00051232,120]
[355844502,1741634695577,-500.0,0.00051232,120]
[355844503,1741634695605,-500.0,0.00051232,120]
[355844505,1741634695633,-500.0,0.00051232,120]
[355844506,1741634695661,-528.56666289,0.00051232,120]
[355844508,1741634695691,-1723.62,0.00051232,120]
[355844510,1741634695719,-500.0,0.00051232,120]
[355844511,1741634695747,-538.97917302,0.00051232,120]
[355844513,1741634695775,-509.99666456,0.00051232,120]
[355844514,1741634695804,-510.29581156,0.00051232,120]
[355844516,1741634695833,-500.0,0.00051232,120]
[355844517,1741634695862,-500.0,0.00051232,120]
[355844519,1741634695891,-280.38188664,0.00051232,120]
[355844521,1741634695922,-500.0,0.00051232,120]
[355844522,1741634695952,-625.71,0.00051232,120]
[355844524,1741634695980,-500.0,0.00051232,120]
[355844525,1741634696012,-574.90731605,0.00051232,120]
[355844527,1741634696042,-551.07721428,0.00051232,120]
[355844528,1741634696072,-500.0,0.00051232,120]
[355844530,1741634696102,-500.0,0.00051232,120]
[355844532,1741634696134,-500.0,0.00051232,120]
[355844533,1741634696164,-500.0,0.00051232,120]
[355844535,1741634696197,-500.0,0.00051232,120]
[355844536,1741634696227,-266.80098767,0.00051232,120]
[355844538,1741634696257,-3946.5,0.00051232,120]
[355844540,1741634696285,-315.575452,0.00051232,120]
[355844541,1741634696314,-526.10526241,0.00051232,120]
[355844543,1741634696342,-538.33518552,0.00051232,120]
[355844544,1741634696373,-555.47870052,0.00051232,120]
[355844546,1741634696401,-315.575452,0.00051232,120]
[355844548,1741634696428,-500.0,0.00051232,120]
[355844549,1741634696455,-352.893851,0.00051232,120]
[355844551,1741634696482,-500.0,0.00051232,120]
[355844552,1741634696509,-500.0,0.00051232,120]
[355844554,1741634696536,-500.0,0.00051232,120]
[355844555,1741634696564,-506.81396163,0.00051232,120]
[355844557,1741634696591,-500.0,0.00051232,120]
[355844559,1741634696618,-352.893851,0.00051232,120]
[355844560,1741634696646,-517.03336607,0.00051232,120]
[355844562,1741634696673,-526.38216399,0.00051232,120]
[355844563,1741634696700,-1395.15,0.00051232,120]
[355844565,1741634696727,-500.0,0.00051232,120]
[355844566,1741634696754,-500.0,0.00051232,120]
[355844568,1741634696781,-500.0,0.00051232,120]
[355844570,1741634696807,-500.0,0.00051232,120]
[355844571,1741634696835,-500.0,0.00051232,120]
[355844573,1741634696865,-500.0,0.00051232,120]
[355844574,1741634696896,-500.0,0.00051232,120]
[355844576,1741634696925,-500.0,0.00051232,120]
[355844577,1741634696954,-220.66238295,0.00051232,120]
[355844579,1741634696982,-500.0,0.00051232,120]
[355844581,1741634697012,-500.0,0.00051232,120]
[355844582,1741634697041,-546.36541451,0.00051232,120]
[355844584,1741634697070,-500.0,0.00051232,120]
[355844585,1741634697099,-501.86,0.00051232,120]
[355844587,1741634697126,-500.0,0.00051232,120]
[355844588,1741634697154,-618.91,0.00051232,120]
[355844590,1741634697183,-696.15,0.00051232,120]
[355844592,1741634697210,-500.0,0.00051232,120]
[355844593,1741634697237,-500.0,0.00051232,120]
[355844595,1741634697265,-500.0,0.00051232,120]
[355844601,1741634697515,-797.66,0.00051232,120]
[355844602,1741634697545,-495.0,0.00051232,120]
[355844604,1741634697573,-523.20669768,0.00051232,120]
[355844605,1741634697600,-500.0,0.00051232,120]
[355844607,1741634697627,-2087.8,0.00051232,120]
[355844609,1741634697657,-500.0,0.00051232,120]
[355844610,1741634697688,-508.0,0.00051232,120]
[355844612,1741634697716,-500.0,0.00051232,120]
[355844613,1741634697744,-500.0,0.00051232,120]
[355844615,1741634697774,-916.87,0.00051232,120]
[355844617,1741634697804,-5780.6,0.00051232,120]
[355844618,1741634697833,-500.0,0.00051232,120]
[355844620,1741634697861,-500.0,0.00051232,120]
[355844621,1741634697890,-907.16,0.00051232,120]
[355844623,1741634697920,-500.0,0.00051232,120]
[355844625,1741634697947,-500.0,0.00051232,120]
[355844626,1741634697974,-500.0,0.00051232,120]
[355844628,1741634698005,-154.932747,0.00051232,120]
[355844629,1741634698033,-500.0,0.00051232,120]
[355844631,1741634698060,-500.0,0.00051232,120]
[355844633,1741634698090,-964.32,0.00051232,120]
[355844634,1741634698117,-500.0,0.00051232,120]
[355844636,1741634698144,-500.0,0.00051232,120]
[355844637,1741634698175,-154.932747,0.00051232,120]
[355844639,1741634698202,-500.0,0.00051232,120]
[355844641,1741634698229,-500.0,0.00051232,120]
[355844642,1741634698256,-2093.35,0.00051232,120]
[355844644,1741634698283,-500.0,0.00051232,120]
[355844645,1741634698311,-532.4632621,0.00051232,120]
[355844647,1741634698340,-500.0,0.00051232,120]
[355844649,1741634698368,-500.0,0.00051232,120]
[355844650,1741634698395,-500.0,0.00051232,120]
[355844652,1741634698424,-500.0,0.00051232,120]
[355844653,1741634698451,-475.87318806,0.00051232,120]
[355844655,1741634698478,-500.0,0.00051232,120]
[355844656,1741634698504,-500.0,0.00051232,120]
[355844658,1741634698532,-500.0,0.00051232,120]
[355844660,1741634698558,-500.0,0.00051232,120]
[355844661,1741634698585,-943.37,0.00051232,120]
[355844663,1741634698611,-500.0,0.00051232,120]
[355844665,1741634698638,-2796.61,0.00051232,120]
[355844666,1741634698665,-500.0,0.00051232,120]
[355844668,1741634698695,-829.49,0.00051232,120]
[355844669,1741634698722,-500.0,0.00051232,120]
[355844671,1741634698750,-1140.9,0.00051232,120]
[355844673,1741634698776,-500.0,0.00051232,120]
[355844674,1741634698803,-500.0,0.00051232,120]
[355844676,1741634698830,-500.0,0.00051232,120]
[355844677,1741634698857,-500.0,0.00051232,120]
[355844679,1741634698884,-500.0,0.00051232,120]
[355844680,1741634698911,-500.0,0.00051232,120]
[355844682,1741634698942,-500.0,0.00051232,120]
[355844684,1741634698969,-506.51041761,0.00051232,120]
[355844685,1741634698998,-580.77,0.00051232,120]
[355844687,1741634699027,-500.0,0.00051232,120]
[355844689,1741634699057,-500.0,0.00051232,120]
[355844690,1741634699084,-500.0,0.00051232,120]
[355844692,1741634699112,-500.0,0.00051232,120]
[355844693,1741634699139,-500.0,0.00051232,120]
[355844694,1741634699167,-500.0,0.00051232,30]
[355844695,1741634699196,-1287.13,0.00051232,120]
[355844696,1741634699225,-519.84970786,0.00051232,120]
[355844697,1741634699251,-500.0,0.00051232,120]
[355844698,1741634699281,-598.27,0.00051232,120]
[355844699,1741634699309,-517.21,0.00051232,120]
[355844700,1741634699337,-500.0,0.00051232,120]
[355844701,1741634699364,-488.15584901,0.00051232,120]
[355844703,1741634699395,-500.0,0.00051232,120]
[355844704,1741634699426,-500.0,0.00051232,120]
[355844706,1741634699455,-500.0,0.00051232,120]
[355844707,1741634699482,-1667.02,0.00051232,120]
[355844709,1741634699509,-500.0,0.00051232,120]
[355844710,1741634699537,-1230.06,0.00051232,120]
[355844712,1741634699564,-500.0,0.00051232,120]
[355844714,1741634699593,-685.63,0.00051232,120]
[355844715,1741634699621,-529.86,0.00051232,120]
[355844717,1741634699648,-500.0,0.00051232,120]
[355844718,1741634699678,-1714.18,0.00051232,120]
[355844720,1741634699705,-518.7481166,0.00051232,120]
[355844721,1741634699732,-592.91763196,0.00051232,120]
[355844723,1741634699762,-2510.41,0.00051232,120]
[355844725,1741634699790,-500.0,0.00051232,120]
[355844726,1741634699818,-500.0,0.00051232,120]
[355844728,1741634699846,-520.23,0.00051232,120]
[355844729,1741634699873,-500.0,0.00051232,120]
[355844731,1741634699901,-3040.06,0.00051232,120]
[355844733,1741634699928,-562.28,0.00051232,120]
[355844734,1741634699956,-500.0,0.00051232,120]
[355844736,1741634699984,-500.0,0.00051232,120]
[355844737,1741634700018,-156.1865139,0.00051232,120]
[355844739,1741634700048,-828.78,0.00051232,120]
[355844740,1741634700078,-3111.15,0.00051232,120]
[355844742,1741634700106,-500.0,0.00051232,120]
[355844743,1741634700135,-530.44790698,0.00051232,120]
[355844745,1741634700165,-492.2047014,0.00051232,120]
[355844746,1741634700200,-500.0,0.00051232,120]
[355844748,1741634700232,-1558.42,0.00051232,120]
[355844750,1741634700260,-500.0,0.00051232,120]
[355844751,1741634700288,-500.0,0.00051232,120]
[355844753,1741634700316,-2044.08,0.00051232,120]
[355844754,1741634700343,-521.44665463,0.00051232,120]
[355844756,1741634700371,-1349.72,0.00051232,120]
[355844757,1741634700400,-500.0,0.00051232,120]
[355844759,1741634700427,-500.0,0.00051232,120]
[355844764,1741634700649,-500.0,0.00051232,120]
[355844766,1741634700679,-529.63743571,0.00051232,120]
[355844767,1741634700707,-505.0,0.00051232,120]
[355844769,1741634700735,-500.0,0.00051232,120]
[355844770,1741634700763,-151.0,0.00051232,120]
[355844772,1741634700791,-500.0,0.00051232,120]
[355844774,1741634700824,-500.0,0.00051232,120]
[355844775,1741634700852,-634.94,0.00051232,120]
[355844777,1741634700880,-1531.21,0.00051232,120]
[355844778,1741634700910,-500.0,0.00051232,120]
[355844780,1741634700941,-948.59,0.00051232,120]
[355844782,1741634700969,-526.53475689,0.00051232,120]
[355844783,1741634701000,-883.077045,0.00051232,120]
[355844785,1741634701028,-500.0,0.00051232,120]
[355844787,1741634701073,-500.0,0.00051232,30]
[355844788,1741634701103,-883.077045,0.00051232,120]
[355844790,1741634701131,-1529.78,0.00051232,120]
[355844791,1741634701159,-500.0,0.00051232,120]
[355844793,1741634701193,-540.1836481,0.00051232,120]
[355844794,1741634701220,-500.0,0.00051232,120]
[355844796,1741634701248,-610.48,0.00051232,120]
[355844798,1741634701276,-500.0,0.00051232,120]
[355844799,1741634701304,-4845.92,0.00051232,120]
[355844801,1741634701331,-500.0,0.00051232,120]
[355844802,1741634701358,-637.0,0.00051232,120]
[355844804,1741634701387,-500.0,0.00051232,120]
[355844806,1741634701416,-996.35,0.00051232,120]
[355844807,1741634701447,-500.0,0.00051232,120]
[355844809,1741634701475,-2013.49,0.00051232,120]
[355844811,1741634701503,-523.22763467,0.00051232,120]
[355844812,1741634701532,-500.0,0.00051232,120]
[355844814,1741634701561,-500.0,0.00051232,120]
[355844815,1741634701589,-932.97,0.00051232,120]
[355844817,1741634701617,-4678.54,0.00051232,120]
[355844819,1741634701645,-500.0,0.00051232,120]
[355844820,1741634701676,-500.0,0.00051232,120]
[355844822,1741634701704,-500.0,0.00051232,45]
[355844823,1741634701733,-500.0,0.00051232,120]
[355844825,1741634701762,-5617.34,0.00051232,120]
[355844827,1741634701791,-500.0,0.00051232,120]
[355844828,1741634701821,-500.0,0.00051232,120]
[355844830,1741634701850,-500.0,0.00051232,120]
[355844832,1741634701879,-518.47186373,0.00051232,120]
[355844833,1741634701910,-3648.52,0.00051232,120]
[355844835,1741634701940,-1071.61,0.00051232,120]
[355844836,1741634701970,-500.0,0.00051232,120]
[355844838,1741634702003,-760.85,0.00051232,120]
[355844840,1741634702032,-500.0,0.00051232,120]
[355844841,1741634702061,-500.0,0.00051232,120]
[355844843,1741634702091,-500.0,0.00051232,120]
[355844845,1741634702120,-500.0,0.00051232,120]
[355844846,1741634702148,-500.0,0.00051232,120]
[355844848,1741634702177,-500.0,0.00051232,120]
[355844849,1741634702205,-500.0,0.00051232,120]
[355844851,1741634702233,-151.0,0.00051232,120]
[355844853,1741634702260,-514.27903455,0.00051232,120]
[355844854,1741634702288,-1343.82,0.00051232,120]
[355844856,1741634702315,-494.12825982,0.00051232,120]
[355844857,1741634702345,-515.44379657,0.00051232,120]
[355844859,1741634702372,-500.0,0.00051232,120]
[355844861,1741634702406,-500.0,0.00051232,120]
[355844862,1741634702438,-500.0,0.00051232,120]
[355844864,1741634702468,-1206.47,0.00051232,120]
[355844866,1741634702496,-898.89,0.00051232,120]
[355844867,1741634702524,-500.0,0.00051232,120]
[355844869,1741634702551,-500.0,0.00051232,120]
[355844870,1741634702578,-500.0,0.00051232,120]
[355844872,1741634702605,-3411.55,0.00051232,120]
[355844874,1741634702635,-12509.02,0.00051232,120]
[355844875,1741634702666,-500.0,0.00051232,120]
[355844877,1741634702701,-523.79984592,0.00051232,120]
[355844879,1741634702730,-705.81,0.00051232,120]
[355844880,1741634702757,-710.74,0.00051232,120]
[355844882,1741634702785,-500.0,0.00051232,120]
[355844883,1741634702814,-500.0,0.00051232,120]
[355844885,1741634702843,-500.0,0.00051232,120]
[355844887,1741634702872,-500.0,0.00051232,120]
[355844888,1741634702899,-500.0,0.00051232,120]
[355844890,1741634702928,-500.0,0.00051232,120]
[355844891,1741634702957,-520.25712871,0.00051232,120]
[355844893,1741634702984,-2771.86,0.00051232,120]
[355844895,1741634703013,-500.0,0.00051232,120]
[355844896,1741634703045,-500.0,0.00051232,120]
[355844898,1741634703082,-500.0,0.00051232,120]
[355844899,1741634703121,-500.0,0.00051232,120]
[355844901,1741634703154,-500.0,0.00051232,120]
[355844902,1741634703189,-5657.78,0.00051232,120]
[355844904,1741634703221,-500.0,0.00051232,120]
[355844906,1741634703255,-796.29,0.00051232,120]
[355844907,1741634703286,-500.0,0.00051232,120]
[355844909,1741634703317,-500.0,0.00051232,120]
[355844910,1741634703349,-5551.46,0.00051232,120]
[355844912,1741634703383,-2183.17,0.00051232,120]
[355844914,1741634703415,-500.0,0.00051232,120]
[355844915,1741634703450,-2581.920992,0.00051232,120]
[355844917,1741634703483,-1240.41,0.00051232,120]
[355844918,1741634703514,-500.0,0.00051232,120]
[355844920,1741634703546,-1508.14,0.00051232,120]
[355844921,1741634703577,-505.42,0.00051232,120]
[355844923,1741634703609,-500.0,0.00051232,120]
[355844925,1741634703640,-500.0,0.00051232,120]
[355844926,1741634703673,-500.0,0.00051232,120]
[355844928,1741634703705,-2581.920992,0.00051232,120]
[355844929,1741634703739,-8620.18,0.00051232,120]
[355844935,1741634703968,-500.0,0.00051232,120]
[355844936,1741634704006,-500.0,0.00051232,120]
[355844938,1741634704039,-510.03065685,0.00051232,120]
[355844939,1741634704073,-500.0,0.00051232,120]
[355844941,1741634704107,-500.0,0.00051232,120]
[355844942,1741634704141,-500.0,0.00051232,120]
[355844944,1741634704181,-500.0,0.00051232,120]
[355844946,1741634704214,-500.0,0.00051232,120]
[355844947,1741634704246,-625.5037693,0.00051232,120]
[355844949,1741634704278,-500.0,0.00051232,120]
[355844950,1741634704311,-500.0,0.00051232,120]
[355844952,1741634704345,-500.0,0.00051232,120]
[355844953,1741634704385,-1144.04,0.00051232,120]
[355844955,1741634704418,-500.0,0.00051232,120]
[355844957,1741634704458,-500.0,0.00051232,120]
[355844958,1741634704493,-500.0,0.00051232,120]
[355844960,1741634704527,-522.79748732,0.00051232,120]
[355844961,1741634704564,-500.0,0.00051232,120]
[355844963,1741634704600,-500.0,0.00051232,120]
[355844965,1741634704632,-500.0,0.00051232,120]
[355844966,1741634704666,-519.27046977,0.00051232,120]
[355844968,1741634704706,-500.0,0.00051232,120]
[355844969,1741634704741,-533.28,0.00051232,120]
[355844971,1741634704772,-500.0,0.00051232,120]
[355844972,1741634704803,-1231.57,0.00051232,120]
[355844973,1741634704835,-500.0,0.00051232,120]
[355844974,1741634704867,-500.0,0.00051232,120]
[355844975,1741634704901,-500.0,0.00051232,120]
[355844976,1741634704934,-500.0,0.00051232,120]
[355844977,1741634704964,-500.0,0.00051232,120]
[355844978,1741634705004,-500.0,0.00051232,120]
[355844979,1741634705040,-562.15,0.00051232,120]
[355844981,1741634705083,-500.0,0.00051232,120]
[355844982,1741634705116,-500.0,0.00051232,120]
[355844984,1741634705150,-500.0,0.00051232,120]
[355844985,1741634705184,-3093.79,0.00051232,120]
[355844987,1741634705218,-500.0,0.00051232,120]
[355844988,1741634705249,-865.06,0.00051232,120]
[355844990,1741634705281,-1650.67,0.00051232,120]
[355844992,1741634705312,-500.0,0.00051232,120]
[355844993,1741634705344,-315.575452,0.00051278,120]
[355844995,1741634705392,-315.575452,0.00051278,120]
[355844996,1741634705429,-315.575452,0.00051278,120]
[355844998,1741634705464,-315.575452,0.00051278,120]
[355844999,1741634705499,-315.575452,0.00051278,120]
[355845001,1741634705531,-315.575452,0.00051278,120]
[355845003,1741634705564,-315.575452,0.00051278,120]
[355845004,1741634705596,-315.575452,0.00051278,120]
[355845006,1741634705628,-352.893851,0.00051278,120]
[355845007,1741634705661,-352.893851,0.00051278,120]
[355845009,1741634705696,-352.893851,0.00051278,120]
[355845010,1741634705727,-352.893851,0.00051278,120]
[355845012,1741634705759,-352.893851,0.00051278,120]
[355845013,1741634705791,-352.893851,0.00051278,120]
[355845015,1741634705825,-352.893851,0.00051278,120]
[355845017,1741634705861,-352.893857,0.00051278,120]
[355845018,1741634705899,-154.932747,0.00051278,120]
[355845020,1741634705936,-154.932747,0.00051278,120]
[355845021,1741634705972,-154.932747,0.00051278,120]
[355845023,1741634706010,-154.932747,0.00051278,120]
[355845025,1741634706047,-154.932747,0.00051278,120]
[355845026,1741634706081,-154.932747,0.00051278,120]
[355845028,1741634706115,-154.932747,0.00051278,120]
[355845029,1741634706150,-154.932745,0.00051278,120]
[355845031,1741634706184,-151.0,0.00051278,120]
[355845032,1741634706219,-151.0,0.00051278,120]
[355845034,1741634706255,-151.0,0.00051278,120]
[355845036,1741634706290,-151.0,0.00051278,120]
[355845037,1741634706327,-883.077045,0.00051278,120]
[355845039,1741634706362,-883.077045,0.00051278,120]
[355845040,1741634706399,-883.077045,0.00051278,120]
[355845042,1741634706437,-883.077045,0.00051278,120]
[355845044,1741634706473,-883.077045,0.00051278,120]
[355845045,1741634706513,-883.077045,0.00051278,120]
[355845047,1741634706548,-883.077045,0.00051278,120]
[355845048,1741634706587,-883.077049,0.00051278,120]
[355845050,1741634706624,-151.0,0.00051278,120]
[355845052,1741634706662,-151.0,0.00051278,120]
[355845053,1741634706704,-294.880597,0.00051278,120]
[355845055,1741634706740,-2581.920992,0.00051278,120]
[355845056,1741634706777,-2581.920992,0.00051278,120]
[355845058,1741634706814,-2581.920992,0.00051278,120]
[355845059,1741634706850,-2581.920992,0.00051278,120]
[355845061,1741634706884,-2581.920992,0.00051278,120]
[355845062,1741634706918,-2581.920992,0.00051278,120]
[355845064,1741634706956,-2581.920992,0.00051278,120]
[355845066,1741634706993,-2581.9209872,0.00051278,120]
[355845067,1741634707039,-655.45842754,0.00051285,95]
[355845069,1741634707089,-182.502146,0.00051323,120]
[355845071,1741634707142,-182.502146,0.00051323,120]
[355845072,1741634707194,-151.0,0.00051328,120]
[355845074,1741634707228,-151.0,0.00051328,120]
[355845076,1741634707267,-716.21616889,0.00051335,120]
[355845077,1741634707299,-313.976993,0.00051341,120]
[355845079,1741634707327,-313.976993,0.00051341,120]
[355845080,1741634707359,-313.976993,0.00051341,120]
[355845082,1741634707389,-313.976993,0.00051341,120]
[355845083,1741634707421,-313.976993,0.00051341,120]
[355845085,1741634707455,-313.976986,0.00051341,120]
[355845086,1741634707488,-178.748256,0.00051341,120]
[355845088,1741634707526,-178.748256,0.00051341,120]
[355845090,1741634707565,-178.748256,0.00051341,120]
[355845091,1741634707603,-178.748256,0.00051341,120]
[355845093,1741634707641,-178.748263,0.00051341,120]
[355845097,1741634707896,-182.502146,0.00051346,120]
[355845098,1741634707938,-182.502146,0.00051346,120]
[355845100,1741634708005,-182.502146,0.00051346,120]
[355845102,1741634708048,-182.502146,0.00051346,120]
[355845103,1741634708092,-182.502146,0.00051346,120]
[355845105,1741634708132,-182.502149,0.00051346,120]
[355845107,1741634708168,-336.288336,0.00051346,120]
[355845108,1741634708203,-336.288336,0.00051346,120]
[355845110,1741634708258,-336.288336,0.00051346,120]
[355845112,1741634708300,-336.288336,0.00051346,120]
[355845113,1741634708373,-336.288336,0.00051346,120]
[355845115,1741634708407,-336.288336,0.00051346,120]
[355845117,1741634708446,-336.288336,0.00051346,120]
[355845118,1741634708478,-336.28834,0.00051346,120]
[355845120,1741634708509,-151.0,0.00051346,120]
[355845121,1741634708539,-151.0,0.00051346,120]
[355845123,1741634708568,-151.0,0.00051346,120]
[355845124,1741634708599,-151.0,0.0005135,120]
[355845126,1741634708630,-151.0,0.0005135,120]
[355845128,1741634708659,-151.0,0.0005135,120]
[355845129,1741634708691,-205.410614,0.0005135,120]
[355845131,1741634708720,-151.0,0.0005135,120]
[355845132,1741634708750,-151.0,0.0005135,120]
[355845134,1741634708780,-151.0,0.0005135,120]
[355845135,1741634708812,-171.262094,0.0005135,120]
[355845137,1741634708842,-171.262094,0.0005135,120]
[355845139,1741634708871,-171.262094,0.0005135,120]
[355845140,1741634708902,-171.262094,0.0005135,120]
[355845142,1741634708936,-171.262094,0.0005135,120]
[355845143,1741634708967,-171.262092,0.0005135,120]
[355845145,1741634708998,-174.512414,0.0005135,120]
[355845146,1741634709031,-174.512414,0.0005135,120]
[355845148,1741634709064,-568.292348,0.0005135,120]
[355845149,1741634709097,-174.512414,0.0005135,120]
[355845151,1741634709132,-174.512424,0.0005135,120]
[355845153,1741634709162,-568.292348,0.0005135,120]
[355845154,1741634709195,-568.292348,0.0005135,120]
[355845156,1741634709225,-568.292357,0.0005135,120]
[355845157,1741634709256,-225.732025,0.0005135,120]
[355845159,1741634709287,-225.732025,0.0005135,120]
[355845160,1741634709317,-225.732025,0.0005135,120]
[355845162,1741634709348,-225.732026,0.0005135,120]
[355845163,1741634709380,-321.404413,0.00051352,120]
[355845165,1741634709414,-321.404413,0.00051352,120]
[355845167,1741634709448,-321.404413,0.00051352,120]
[355845168,1741634709479,-321.404413,0.00051352,120]
[355845170,1741634709509,-321.404413,0.00051352,120]